[Event "DVM U12 2021-22"]
[Site "Naumburg"]
[Date "2022.03.27"]
[Round "5"]
[White "Eichner, Tim"]
[Black "Fadeev, Justin Michael"]
[Result "0-1"]
[ECO "B30"]
[WhiteElo "1460"]
[BlackElo "1327"]
[Annotator "NA"]
[PlyCount "64"]
[EventDate "2022.03.25"]
[EventType "team-tourn"]
[EventRounds "7"]
[EventCountry "GER"]
[SourceTitle "playchess.com"]
[Source "ChessBase"]
[SourceQuality "1"]
[TimeControl "40/5400+30:1800+30"]

1. e4 {[%emt 0:00:04]} c5 {[%emt 0:00:18]} 2. Nf3 {[%emt 0:00:15]} Nc6 {[%emt 0:00:28]} 3. Bc4 {[%emt 0:02:33]} g6 {[%emt 0:03:14]} 4. O-O {[%emt 0:00:13]} Bg7 {[%emt 0:00:16]} 5. c3 {[%emt 0:00:17]} e6 {[%emt 0:00:37]} 6. d4 {[%emt 0:00:15]} d5 {[%emt 0:01:05]} 7. exd5 {[%emt 0:00:28]} exd5 {[%emt 0:00:21]} 8. Bb5 {[%emt 0:00:34]} cxd4 {[%emt 0:01:19]} 9. cxd4 {[%emt 0:00:56]} Nge7 {[%emt 0:00:24]} 10. Nc3 {[%emt 0:00:49]} O-O {[%emt 0:00:29]} 11. Be3 {[%emt 0:02:31]} a6 {[%emt 0:01:45]} 12. Be2 {[%emt 0:04:26]} Nf5 {[%emt 0:01:10]} 13. Qd2 {[%emt 0:02:43]} Re8 {[%emt 0:05:19]} 14. a3 {[%emt 0:02:17]} Nxe3 {[%emt 0:00:42]} 15. fxe3 {[%emt 0:00:11]} Bh6 {[%emt 0:00:44]} 16. Nd1 {[%emt 0:07:13]} Qe7 {[%emt 0:00:59]} 17. Qd3 {[%emt 0:01:37]} Bxe3+ {[%emt 0:00:37]} 18. Kh1 {[%emt 0:06:21]} Bf5 {[%emt 0:01:26]} 19. Qb3 {[%emt 0:02:35]} Bxd4 {[%emt 0:00:57]} 20. Nxd4 {[%emt 0:05:13]} Nxd4 {[%emt 0:00:13]} 21. Qxd5 {[%emt 0:00:39]} Nxe2 {[%emt 0:00:44]} 22. Nf2 {[%emt 0:00:23]} Nf4 {[%emt 0:01:09]} 23. Qc4 {[%emt 0:00:18]} Qe5 {[%emt 0:02:34]} 24. Rad1 {[%emt 0:03:50]} Rad8 {[%emt 0:01:55]} 25. Qb3 {[%emt 0:04:29]} Rxd1 {[%emt 0:00:29]} 26. Qxd1 {[%emt 0:00:35]} Qd5 {[%emt 0:00:41]} 27. Qxd5 {[%emt 0:02:46]} Nxd5 {[%emt 0:00:10]} 28. g3 {[%emt 0:01:00]} Re2 {[%emt 0:01:47]} 29. Nd1 {[%emt 0:00:27]} Be4+ {[%emt 0:00:46]} 30. Kg1 {[%emt 0:00:14]} Rg2+ {[%emt 0:00:16]} 31. Kh1 {[%emt 0:00:07]} Rxg3+ {[%emt 0:00:09]} 32. Rf3 {[%emt 0:00:37]} Bxf3# 0-1

[Event "DVM U12 2021-22"]
[Site "Naumburg"]
[Date "2022.03.27"]
[Round "5"]
[White "Middendorf, Sven-Jonas"]
[Black "Fruth, David"]
[Result "1/2-1/2"]
[ECO "B20"]
[WhiteElo "1424"]
[BlackElo "1607"]
[Annotator "NA"]
[PlyCount "77"]
[EventDate "2022.03.25"]
[EventType "team-tourn"]
[EventRounds "7"]
[EventCountry "GER"]
[SourceTitle "playchess.com"]
[Source "ChessBase"]
[SourceQuality "1"]
[TimeControl "40/5400+30:1800+30"]

1. e4 {[%emt 0:00:02]} c5 {[%emt 0:00:21]} 2. Ne2 {[%emt 0:00:09]} g6 {[%emt 0:00:09]} 3. d3 {[%emt 0:00:16]} Bg7 {[%emt 0:00:09]} 4. Nbc3 {[%emt 0:00:04]} Nc6 {[%emt 0:00:11]} 5. Be3 {[%emt 0:00:07]} d6 {[%emt 0:00:38]} 6. g3 {[%emt 0:00:29]} Ne5 {[%emt 0:00:07]} 7. Bg2 {[%emt 0:00:41]} Bg4 {[%emt 0:00:15]} 8. f4 {[%emt 0:00:57]} Nf3+ {[%emt 0:00:16]} 9. Bxf3 {[%emt 0:00:19]} Bxf3 {[%emt 0:00:05]} 10. Rf1 {[%emt 0:00:24]} Bxe2 {[%emt 0:00:11]} 11. Qxe2 {[%emt 0:00:12]} Qb6 {[%emt 0:00:45]} 12. O-O-O {[%emt 0:16:53]} Qa5 {[%emt 0:00:45]} 13. Bd2 {[%emt 0:01:01]} b5 {[%emt 0:00:47]} 14. Kb1 {[%emt 0:09:40]} Rb8 {[%emt 0:04:12]} 15. a3 {[%emt 0:05:38]} b4 {[%emt 0:00:51]} 16. Nd5 {[%emt 0:03:02]} Bxb2 {[%emt 0:03:28]} 17. Bc1 {[%emt 0:21:07]} bxa3 {[%emt 0:01:06]} 18. Ka2 {[%emt 0:01:50]} Bd4 {[%emt 0:04:06]} 19. Qd2 {[%emt 0:02:35]} Rb2+ {[%emt 0:00:09]} 20. Bxb2 {[%emt 0:00:11]} Qxd2 {[%emt 0:01:25]} 21. Rxd2 {[%emt 0:00:05]} Bxb2 {[%emt 0:00:23]} 22. Nc7+ {[%emt 0:00:57]} Kd7 {[%emt 0:00:09]} 23. Nb5 {[%emt 0:00:08]} Nf6 {[%emt 0:00:39]} 24. Nxa3 {[%emt 0:00:46]} Bc3 {[%emt 0:00:24]} 25. Re2 {[%emt 0:00:29]} Kc6 {[%emt 0:01:05]} 26. Rb1 {[%emt 0:00:48]} Nd7 {[%emt 0:00:33]} 27. Nc4 {[%emt 0:01:51]} Nb6 {[%emt 0:00:59]} 28. Nxb6 {[%emt 0:00:48]} axb6 {[%emt 0:00:02]} 29. Kb3 {[%emt 0:00:42]} Bg7 {[%emt 0:00:17]} 30. c3 {[%emt 0:02:07]} Ra8 {[%emt 0:01:09]} 31. Rc2 {[%emt 0:03:59]} b5 {[%emt 0:03:58]} 32. c4 {[%emt 0:03:13]} bxc4+ {[%emt 0:01:16]} 33. Rxc4 {[%emt 0:02:01]} Rb8+ {[%emt 0:00:14]} 34. Kc2 {[%emt 0:00:11]} Ra8 {[%emt 0:00:04]} 35. Kd2 {[%emt 0:00:54]} Bd4 {[%emt 0:00:32]} 36. Rbc1 {[%emt 0:01:46]} Kb5 {[%emt 0:00:06]} 37. Rb1+ {[%emt 0:00:08]} Kc6 {[%emt 0:00:06]} 38. Rbc1 {[%emt 0:04:08]} Kb5 {[%emt 0:00:13]} 39. Rb1+ {[%emt 0:00:06]} 1/2-1/2

[Event "DVM U12 2021-22"]
[Site "Naumburg"]
[Date "2022.03.27"]
[Round "5"]
[White "Moldovan, Tatiana"]
[Black "Bock, Leonas"]
[Result "1-0"]
[ECO "B24"]
[WhiteElo "1403"]
[BlackElo "1341"]
[Annotator "NA"]
[PlyCount "103"]
[EventDate "2022.03.25"]
[EventType "team-tourn"]
[EventRounds "7"]
[EventCountry "GER"]
[SourceTitle "playchess.com"]
[Source "ChessBase"]
[SourceQuality "1"]
[TimeControl "40/5400+30:1800+30"]

1. e4 {[%emt 0:00:05]} c5 {[%emt 0:00:08]} 2. Nc3 {[%emt 0:00:06]} Nc6 {[%emt 0:00:16]} 3. Bb5 {[%emt 0:00:18]} e6 {[%emt 0:00:31]} 4. Bxc6 {[%emt 0:00:15]} bxc6 {[%emt 0:00:10]} 5. f4 {[%emt 0:00:22]} d5 {[%emt 0:00:53]} 6. Nf3 {[%emt 0:00:34]} Ne7 {[%emt 0:02:48]} 7. O-O {[%emt 0:00:25]} g6 {[%emt 0:02:35]} 8. d3 {[%emt 0:01:31]} Bg7 {[%emt 0:01:49]} 9. Qe1 {[%emt 0:02:54]} O-O {[%emt 0:04:05]} 10. Na4 {[%emt 0:00:13]} Qc7 {[%emt 0:06:54]} 11. Kh1 {[%emt 0:01:54]} f5 {[%emt 0:07:08]} 12. e5 {[%emt 0:01:03]} d4 {[%emt 0:03:45]} 13. Nxc5 {[%emt 0:04:11]} Qb6 {[%emt 0:03:37]} 14. b4 {[%emt 0:02:05]} Rd8 {[%emt 0:04:33]} 15. Bb2 Rb8 {[%emt 0:00:46]} 16. a3 {[%emt 0:00:55]} Qc7 {[%emt 0:04:11]} 17. Nxd4 {[%emt 0:00:38]} Kf7 {[%emt 0:01:41]} 18. Nf3 {[%emt 0:02:12]} h6 {[%emt 0:03:42]} 19. c4 {[%emt 0:01:27]} Bf8 {[%emt 0:00:45]} 20. Nd2 {[%emt 0:03:34]} a5 {[%emt 0:03:40]} 21. Bc3 {[%emt 0:03:50]} Ng8 {[%emt 0:03:20]} 22. Ndb3 {[%emt 0:00:54]} a4 {[%emt 0:04:34]} 23. Nxa4 {[%emt 0:01:36]} Rxd3 {[%emt 0:00:33]} 24. Rd1 {[%emt 0:00:14]} Rxd1 {[%emt 0:01:17]} 25. Qxd1 {[%emt 0:00:04]} Ba6 {[%emt 0:00:16]} 26. Nb2 {[%emt 0:00:42]} Rd8 {[%emt 0:02:19]} 27. Qf3 {[%emt 0:00:35]} c5 {[%emt 0:01:19]} 28. b5 {[%emt 0:01:13]} Bb7 {[%emt 0:01:25]} 29. Qe2 {[%emt 0:00:11]} Qb8 {[%emt 0:02:31]} 30. Rd1 {[%emt 0:00:28]} Be7 {[%emt 0:02:04]} 31. Rxd8 {[%emt 0:00:43]} Qxd8 {[%emt 0:01:14]} 32. Nd3 {[%emt 0:00:43]} Qc8 {[%emt 0:02:04]} 33. Qe3 {[%emt 0:07:44]} Qd7 {[%emt 0:02:11]} 34. Be1 {[%emt 0:01:53]} Ba8 {[%emt 0:02:14]} 35. h3 {[%emt 0:00:32]} Qb7 {[%emt 0:00:39]} 36. Qe2 {[%emt 0:00:50]} Qa7 {[%emt 0:01:01]} 37. Ba5 {[%emt 0:00:41]} Be4 {[%emt 0:01:00]} 38. Qe3 {[%emt 0:02:08]} g5 {[%emt 0:03:12]} 39. Qe2 {[%emt 0:02:42]} Kg7 {[%emt 0:02:48]} 40. Nf2 {[%emt 0:00:38]} Ba8 {[%emt 0:00:54]} 41. Nd1 {[%emt 0:32:05]} gxf4 {[%emt 0:31:20]} 42. Qf2 {[%emt 0:01:16]} Qb7 {[%emt 0:00:53]} 43. Nc3 {[%emt 0:01:08]} Bh4 {[%emt 0:01:41]} 44. Qe2 {[%emt 0:01:07]} Be7 {[%emt 0:03:34]} 45. Na4 {[%emt 0:00:18]} Qa7 {[%emt 0:02:13]} 46. Qf2 {[%emt 0:04:04]} Kh7 {[%emt 0:02:45]} 47. Qxf4 {[%emt 0:01:25]} Qb7 {[%emt 0:01:17]} 48. Qf2 {[%emt 0:00:45]} Qa7 {[%emt 0:00:14]} 49. Naxc5 {[%emt 0:00:45]} Bxc5 {[%emt 0:02:43]} 50. Qxc5 {[%emt 0:00:08]} Qg7 {[%emt 0:00:20]} 51. Qf2 {[%emt 0:00:52]} Qxe5 {[%emt 0:00:04]} 52. Qa7+ {[%emt 0:00:34]} 1-0

[Event "DVM U12 2021-22"]
[Site "Naumburg"]
[Date "2022.03.27"]
[Round "5"]
[White "Zhang, Yibo"]
[Black "Lorenz, Veronika"]
[Result "0-1"]
[ECO "C45"]
[WhiteElo "1397"]
[BlackElo "1388"]
[Annotator "NA"]
[PlyCount "86"]
[EventDate "2022.03.25"]
[EventType "team-tourn"]
[EventRounds "7"]
[EventCountry "GER"]
[SourceTitle "playchess.com"]
[Source "ChessBase"]
[SourceQuality "1"]
[TimeControl "40/5400+30:1800+30"]

1. e4 {[%emt 0:00:03]} e5 {[%emt 0:00:06]} 2. Nf3 {[%emt 0:00:04]} Nc6 {[%emt 0:00:04]} 3. d4 {[%emt 0:00:05]} exd4 {[%emt 0:00:07]} 4. Nxd4 {[%emt 0:00:04]} Nf6 {[%emt 0:00:16]} 5. Nxc6 {[%emt 0:00:05]} bxc6 {[%emt 0:00:06]} 6. e5 {[%emt 0:00:03]} Qe7 {[%emt 0:00:09]} 7. Qe2 {[%emt 0:00:04]} Nd5 {[%emt 0:00:10]} 8. c4 {[%emt 0:00:17]} Nb6 {[%emt 0:00:06]} 9. b3 {[%emt 0:00:16]} Bb7 {[%emt 0:01:38]} 10. Nc3 {[%emt 0:02:01]} a5 {[%emt 0:04:15]} 11. a3 {[%emt 0:05:26]} Qe6 {[%emt 0:04:19]} 12. Rb1 {[%emt 0:12:02]} Ba6 {[%emt 0:07:54]} 13. f4 {[%emt 0:07:02]} a4 {[%emt 0:02:38]} 14. Nxa4 {[%emt 0:03:44]} Bxc4 {[%emt 0:01:57]} 15. bxc4 {[%emt 0:00:23]} Nxa4 {[%emt 0:04:23]} 16. Qf3 {[%emt 0:11:11]} Bc5 {[%emt 0:05:33]} 17. Bd3 {[%emt 0:02:45]} Nb6 {[%emt 0:01:52]} 18. Qe4 {[%emt 0:17:30]} Qe7 {[%emt 0:11:55]} 19. f5 {[%emt 0:11:58]} Kd8 {[%emt 0:17:32]} 20. Bb2 {[%emt 0:09:24]} Bxa3 {[%emt 0:09:41]} 21. O-O {[%emt 0:01:22]} Bxb2 {[%emt 0:00:55]} 22. Rxb2 {[%emt 0:00:29]} Re8 {[%emt 0:02:21]} 23. Re1 {[%emt 0:06:43]} Qc5+ {[%emt 0:03:00]} 24. Kh1 {[%emt 0:00:38]} Qa3 {[%emt 0:03:20]} 25. Reb1 {[%emt 0:03:09]} Qa5 {[%emt 0:02:02]} 26. Re2 {[%emt 0:01:42]} Qa3 {[%emt 0:02:34]} 27. Reb2 {[%emt 0:00:39]} Qc5 {[%emt 0:02:17]} 28. Re2 {[%emt 0:01:17]} Kc8 {[%emt 0:00:52]} 29. h3 {[%emt 0:00:29]} Ra4 {[%emt 0:00:31]} 30. Qg4 {[%emt 0:02:31]} Rxe5 {[%emt 0:05:56]} 31. Qxg7 {[%emt 0:00:20]} Rxe2 {[%emt 0:00:40]} 32. Bxe2 {[%emt 0:00:22]} Qxf5 {[%emt 0:01:25]} 33. Rb3 {[%emt 0:01:47]} Qf4 {[%emt 0:01:51]} 34. Qc3 {[%emt 0:00:39]} f6 {[%emt 0:03:36]} 35. Qb2 {[%emt 0:00:45]} Qe5 {[%emt 0:00:23]} 36. Rc3 {[%emt 0:00:37]} Nxc4 {[%emt 0:01:15]} 37. Bxc4 {[%emt 0:00:31]} Rxc4 {[%emt 0:00:05]} 38. Qa1 {[%emt 0:00:05]} Rb4 {[%emt 0:00:30]} 39. Qc1 {[%emt 0:00:54]} Re4 {[%emt 0:00:26]} 40. Rf3 {[%emt 0:00:32]} Re1+ {[%emt 0:00:08]} 41. Qxe1 {[%emt 0:30:07]} Qxe1+ {[%emt 0:30:02]} 42. Kh2 {[%emt 0:00:14]} Qe5+ {[%emt 0:00:18]} 43. Kh1 {[%emt 0:00:07]} c5 {[%emt 0:00:12]} 0-1

[Event "DVM U12 2021-22"]
[Site "Naumburg"]
[Date "2022.03.27"]
[Round "5"]
[White "Beberhold, Otto Richard"]
[Black "Moldovan, Stela"]
[Result "1-0"]
[ECO "D05"]
[WhiteElo "1368"]
[BlackElo "1209"]
[Annotator "NA"]
[PlyCount "79"]
[EventDate "2022.03.25"]
[EventType "team-tourn"]
[EventRounds "7"]
[EventCountry "GER"]
[SourceTitle "playchess.com"]
[Source "ChessBase"]
[SourceQuality "1"]
[TimeControl "40/5400+30:1800+30"]

1. d4 {[%emt 0:00:02]} d5 {[%emt 0:00:06]} 2. Nf3 {[%emt 0:00:05]} Nf6 {[%emt 0:00:14]} 3. e3 {[%emt 0:00:05]} e6 {[%emt 0:00:06]} 4. Bd3 {[%emt 0:00:04]} Bd6 {[%emt 0:00:07]} 5. O-O {[%emt 0:00:05]} b6 {[%emt 0:00:12]} 6. Nbd2 {[%emt 0:00:34]} Bb7 {[%emt 0:00:08]} 7. b3 {[%emt 0:00:05]} Nbd7 {[%emt 0:00:12]} 8. Bb2 {[%emt 0:00:12]} O-O {[%emt 0:02:41]} 9. Ne5 {[%emt 0:01:11]} c5 {[%emt 0:01:06]} 10. f4 {[%emt 0:00:25]} Ne4 {[%emt 0:01:37]} 11. Rf3 {[%emt 0:00:59]} cxd4 {[%emt 0:00:30]} 12. exd4 {[%emt 0:00:14]} f6 {[%emt 0:00:12]} 13. Nxd7 {[%emt 0:03:58]} Qxd7 {[%emt 0:00:48]} 14. Rh3 {[%emt 0:00:15]} Bxf4 {[%emt 0:00:55]} 15. Bxe4 {[%emt 0:00:22]} dxe4 {[%emt 0:00:25]} 16. Qe2 {[%emt 0:02:41]} f5 {[%emt 0:00:31]} 17. Rf1 {[%emt 0:00:57]} e5 {[%emt 0:01:59]} 18. Nc4 {[%emt 0:04:52]} Ba6 {[%emt 0:02:17]} 19. g3 {[%emt 0:03:24]} Bxc4 {[%emt 0:00:27]} 20. Qxc4+ {[%emt 0:00:16]} Kh8 {[%emt 0:00:16]} 21. gxf4 {[%emt 0:00:36]} Rac8 {[%emt 0:00:11]} 22. Qe2 {[%emt 0:00:43]} exd4 {[%emt 0:00:26]} 23. Qh5 {[%emt 0:03:00]} h6 {[%emt 0:00:21]} 24. Rd1 {[%emt 0:05:34]} Qe6 {[%emt 0:02:02]} 25. Bxd4 {[%emt 0:03:10]} Kh7 {[%emt 0:00:44]} 26. Rd2 {[%emt 0:01:25]} Rfd8 {[%emt 0:01:03]} 27. c3 {[%emt 0:01:39]} b5 {[%emt 0:02:03]} 28. Rg2 {[%emt 0:00:17]} Rxd4 {[%emt 0:00:34]} 29. cxd4 {[%emt 0:02:55]} Rc1+ {[%emt 0:00:12]} 30. Kf2 {[%emt 0:00:16]} Rc2+ {[%emt 0:00:07]} 31. Kg3 {[%emt 0:01:48]} Rc3+ {[%emt 0:00:58]} 32. Kh4 {[%emt 0:00:08]} Qf6+ {[%emt 0:00:28]} 33. Rg5 {[%emt 0:00:17]} Rxh3+ {[%emt 0:00:44]} 34. Kxh3 {[%emt 0:00:25]} g6 {[%emt 0:02:21]} 35. Qh4 {[%emt 0:03:11]} Qxd4 {[%emt 0:00:16]} 36. Rg3 {[%emt 0:00:35]} Qf2 {[%emt 0:00:40]} 37. Qe7+ {[%emt 0:00:17]} Kh8 {[%emt 0:00:28]} 38. Qe8+ {[%emt 0:00:04]} Kh7 {[%emt 0:00:36]} 39. Qxg6+ {[%emt 0:00:06]} Kh8 {[%emt 0:00:04]} 40. Qg7# 1-0

[Event "DVM U12 2021-22"]
[Site "Naumburg"]
[Date "2022.03.27"]
[Round "5"]
[White "Flierl, Veronika"]
[Black "Goldschmidt, Jakob"]
[Result "0-1"]
[ECO "C23"]
[WhiteElo "1356"]
[BlackElo "1081"]
[Annotator "NA"]
[PlyCount "130"]
[EventDate "2022.03.25"]
[EventType "team-tourn"]
[EventRounds "7"]
[EventCountry "GER"]
[SourceTitle "playchess.com"]
[Source "ChessBase"]
[SourceQuality "1"]
[TimeControl "40/5400+30:1800+30"]

1. e4 {[%emt 0:00:02]} e5 {[%emt 0:00:06]} 2. Nf3 {[%emt 0:00:04]} Nc6 {[%emt 0:00:09]} 3. Bc4 {[%emt 0:00:07]} Bc5 {[%emt 0:00:15]} 4. c3 {[%emt 0:00:10]} d6 {[%emt 0:00:15]} 5. d4 {[%emt 0:00:24]} exd4 {[%emt 0:00:09]} 6. cxd4 {[%emt 0:00:06]} Bb6 {[%emt 0:00:41]} 7. h3 {[%emt 0:14:10]} Nge7 {[%emt 0:04:09]} 8. Be3 {[%emt 0:07:47]} Ng6 {[%emt 0:05:09]} 9. O-O {[%emt 0:04:10]} h6 {[%emt 0:02:26]} 10. Nc3 {[%emt 0:01:35]} O-O {[%emt 0:01:12]} 11. Qc2 {[%emt 0:10:24]} Qf6 {[%emt 0:09:04]} 12. Nd5 {[%emt 0:07:40]} Qd8 {[%emt 0:04:29]} 13. Rfd1 {[%emt 0:06:01]} Nh4 {[%emt 0:07:46]} 14. Nxh4 {[%emt 0:04:52]} Qxh4 {[%emt 0:00:16]} 15. Nxb6 {[%emt 0:01:04]} axb6 {[%emt 0:01:27]} 16. Bb5 {[%emt 0:02:33]} Bd7 {[%emt 0:03:27]} 17. a3 {[%emt 0:02:44]} Rfe8 {[%emt 0:08:47]} 18. f3 {[%emt 0:02:34]} Ra5 {[%emt 0:09:13]} 19. Ba4 {[%emt 0:03:03]} Qg3 {[%emt 0:06:27]} 20. b4 {[%emt 0:04:22]} Raa8 {[%emt 0:04:41]} 21. Bf2 {[%emt 0:02:29]} Qg5 {[%emt 0:02:36]} 22. Kh2 {[%emt 0:00:28]} d5 {[%emt 0:17:26]} 23. e5 {[%emt 0:04:57]} Re6 {[%emt 0:02:46]} 24. b5 {[%emt 0:04:46]} Rg6 {[%emt 0:03:05]} 25. Be1 {[%emt 0:02:13]} Nxd4 {[%emt 0:02:18]} 26. Qf2 {[%emt 0:05:35]} Rxa4 {[%emt 0:02:44]} 27. f4 {[%emt 0:00:57]} Nf3+ {[%emt 0:01:28]} 28. Qxf3 {[%emt 0:00:14]} Rxf4 {[%emt 0:00:09]} 29. Qg3 {[%emt 0:00:23]} c6 {[%emt 0:01:10]} 30. Qxg5 {[%emt 0:00:25]} Rxg5 {[%emt 0:00:17]} 31. Bd2 {[%emt 0:00:42]} Rff5 {[%emt 0:01:14]} 32. Bxg5 {[%emt 0:00:10]} Rxg5 {[%emt 0:00:06]} 33. bxc6 {[%emt 0:00:20]} bxc6 {[%emt 0:00:10]} 34. Rab1 {[%emt 0:01:20]} b5 {[%emt 0:00:18]} 35. Re1 {[%emt 0:00:14]} c5 {[%emt 0:00:32]} 36. Rbd1 {[%emt 0:00:38]} d4 {[%emt 0:00:18]} 37. Re4 {[%emt 0:00:58]} Bc6 {[%emt 0:00:20]} 38. Re2 {[%emt 0:00:29]} Kf8 {[%emt 0:00:41]} 39. Rdd2 {[%emt 0:02:06]} Ke7 {[%emt 0:00:22]} 40. Kg1 {[%emt 0:02:40]} Ke6 {[%emt 0:00:26]} 41. Kf1 {[%emt 0:31:38]} Rxe5 {[%emt 0:31:05]} 42. g4 {[%emt 0:02:57]} b4 {[%emt 0:01:03]} 43. axb4 {[%emt 0:00:22]} Bb5 {[%emt 0:00:16]} 44. bxc5 {[%emt 0:00:00]} Rxe2 {[%emt 0:00:00]} 45. Rxe2+ {[%emt 0:00:00]} Bxe2+ {[%emt 0:00:00]} 46. Kxe2 {[%emt 0:00:00]} Kd5 {[%emt 0:00:00]} 47. c6 {[%emt 0:00:00]} Kxc6 {[%emt 0:00:00]} 48. Kd2 {[%emt 0:00:00]} Kd5 {[%emt 0:00:00]} 49. Kd3 {[%emt 0:00:00]} g6 {[%emt 0:00:00]} 50. h4 {[%emt 0:00:00]} f5 {[%emt 0:00:00]} 51. h5 {[%emt 0:00:00]} fxg4 {[%emt 0:00:00]} 52. hxg6 {[%emt 0:00:00]} Ke6 {[%emt 0:00:00]} 53. Kxd4 {[%emt 0:00:00]} Kf6 {[%emt 0:00:00]} 54. Ke4 {[%emt 0:00:00]} Kxg6 {[%emt 0:00:00]} 55. Kf4 {[%emt 0:00:00]} Kh5 {[%emt 0:00:00]} 56. Kg3 {[%emt 0:00:00]} Kg5 {[%emt 0:00:00]} 57. Kg2 {[%emt 0:00:00]} Kf4 {[%emt 0:00:00]} 58. Kf2 {[%emt 0:00:00]} g3+ {[%emt 0:00:00]} 59. Kg2 {[%emt 0:00:00]} Kg4 {[%emt 0:00:00]} 60. Kg1 {[%emt 0:00:00]} Kf3 {[%emt 0:00:00]} 61. Kh1 {[%emt 0:00:00]} h5 {[%emt 0:00:00]} 62. Kg1 {[%emt 0:00:00]} g2 {[%emt 0:00:00]} 63. Kh2 {[%emt 0:00:00]} Kf2 {[%emt 0:00:00]} 64. Kh3 {[%emt 0:00:00]} g1=Q {[%emt 0:00:00]} 65. Kh4 {[%emt 0:00:00]} Qg4# 0-1

[Event "DVM U12 2021-22"]
[Site "Naumburg"]
[Date "2022.03.27"]
[Round "5"]
[White "Teng, David"]
[Black "Dorendorf, Mika"]
[Result "1-0"]
[ECO "B28"]
[WhiteElo "1334"]
[BlackElo "1550"]
[Annotator "NA"]
[PlyCount "78"]
[EventDate "2022.03.25"]
[EventType "team-tourn"]
[EventRounds "7"]
[EventCountry "GER"]
[SourceTitle "playchess.com"]
[Source "ChessBase"]
[SourceQuality "1"]
[TimeControl "40/5400+30:1800+30"]

1. e4 {[%emt 0:00:01]} c5 {[%emt 0:00:03]} 2. Nf3 {[%emt 0:00:09]} a6 {[%emt 0:00:05]} 3. Nc3 {[%emt 0:00:14]} Nc6 {[%emt 0:00:25]} 4. d4 {[%emt 0:00:52]} cxd4 {[%emt 0:00:05]} 5. Nxd4 {[%emt 0:00:05]} Nf6 {[%emt 0:00:34]} 6. Bg5 {[%emt 0:04:31]} d6 {[%emt 0:02:56]} 7. f4 {[%emt 0:01:59]} Bg4 {[%emt 0:03:00]} 8. Qd2 {[%emt 0:01:07]} Rc8 {[%emt 0:04:36]} 9. h3 {[%emt 0:00:48]} Bd7 {[%emt 0:00:48]} 10. O-O-O {[%emt 0:02:12]} Qc7 {[%emt 0:01:27]} 11. Kb1 {[%emt 0:02:33]} Nxe4 {[%emt 0:02:12]} 12. Nxe4 {[%emt 0:03:56]} Nxd4 {[%emt 0:00:08]} 13. Bd3 {[%emt 0:01:12]} f6 {[%emt 0:02:44]} 14. Bh4 {[%emt 0:03:09]} e5 {[%emt 0:03:32]} 15. Bf2 {[%emt 0:08:08]} Ne6 {[%emt 0:01:29]} 16. fxe5 {[%emt 0:06:47]} dxe5 {[%emt 0:00:16]} 17. g3 {[%emt 0:01:11]} Bc5 {[%emt 0:01:59]} 18. Bxc5 {[%emt 0:01:27]} Nxc5 {[%emt 0:00:08]} 19. Nd6+ {[%emt 0:01:45]} Ke7 {[%emt 0:00:20]} 20. Nxc8+ {[%emt 0:02:24]} Bxc8 {[%emt 0:00:19]} 21. Qc3 {[%emt 0:03:55]} Qb6 {[%emt 0:04:28]} 22. Qa3 {[%emt 0:06:28]} Be6 {[%emt 0:01:45]} 23. g4 {[%emt 0:01:46]} g6 {[%emt 0:02:21]} 24. Be4 {[%emt 0:01:58]} Rd8 {[%emt 0:04:39]} 25. Rxd8 {[%emt 0:01:20]} Kxd8 {[%emt 0:00:05]} 26. Rd1+ {[%emt 0:01:25]} Ke8 {[%emt 0:02:53]} 27. Bd5 {[%emt 0:08:24]} Qd6 {[%emt 0:01:03]} 28. Bf3 {[%emt 0:02:09]} Qc7 {[%emt 0:00:37]} 29. Be2 {[%emt 0:04:13]} b5 {[%emt 0:02:19]} 30. Qf3 {[%emt 0:02:09]} Ke7 {[%emt 0:09:04]} 31. Bd3 {[%emt 0:06:00]} b4 {[%emt 0:03:15]} 32. Be4 {[%emt 0:02:54]} a5 {[%emt 0:01:41]} 33. Bd5 {[%emt 0:01:57]} a4 {[%emt 0:00:16]} 34. Bxe6 {[%emt 0:00:42]} Nxe6 {[%emt 0:00:07]} 35. Qe4 {[%emt 0:01:18]} Nd4 {[%emt 0:00:11]} 36. Rxd4 {[%emt 0:00:44]} Qb6 {[%emt 0:00:42]} 37. Rd1 {[%emt 0:01:38]} b3 {[%emt 0:00:10]} 38. cxb3 {[%emt 0:01:15]} axb3 {[%emt 0:00:08]} 39. a3 {[%emt 0:00:18]} Qc7 {[%emt 0:00:13]} 1-0

[Event "DVM U12 2021-22"]
[Site "Naumburg"]
[Date "2022.03.27"]
[Round "5"]
[White "Marinin, Georgii"]
[Black "Stettner, Oskar"]
[Result "1-0"]
[ECO "B17"]
[WhiteElo "1293"]
[BlackElo "1446"]
[Annotator "NA"]
[PlyCount "99"]
[EventDate "2022.03.25"]
[EventType "team-tourn"]
[EventRounds "7"]
[EventCountry "GER"]
[SourceTitle "playchess.com"]
[Source "ChessBase"]
[SourceQuality "1"]
[TimeControl "40/5400+30:1800+30"]

1. e4 {[%emt 0:00:01]} c6 {[%emt 0:00:15]} 2. d4 {[%emt 0:00:05]} d5 {[%emt 0:00:04]} 3. Nc3 {[%emt 0:00:07]} dxe4 {[%emt 0:00:09]} 4. Nxe4 {[%emt 0:00:17]} Nd7 {[%emt 0:00:07]} 5. Nf3 {[%emt 0:00:55]} Ngf6 {[%emt 0:00:18]} 6. Nxf6+ {[%emt 0:02:07]} Nxf6 {[%emt 0:00:13]} 7. c4 {[%emt 0:05:41]} Bg4 {[%emt 0:01:57]} 8. Be2 {[%emt 0:02:36]} e6 {[%emt 0:01:27]} 9. h3 {[%emt 0:01:09]} Bxf3 {[%emt 0:00:26]} 10. Bxf3 {[%emt 0:00:09]} Bb4+ {[%emt 0:00:47]} 11. Bd2 {[%emt 0:01:32]} Qa5 {[%emt 0:00:27]} 12. a3 {[%emt 0:03:24]} Bxd2+ {[%emt 0:01:04]} 13. Qxd2 {[%emt 0:00:06]} Qxd2+ 14. Kxd2 {[%emt 0:00:06]} O-O-O {[%emt 0:00:23]} 15. Ke3 {[%emt 0:01:06]} Rd7 {[%emt 0:01:14]} 16. Rhd1 {[%emt 0:00:26]} Rhd8 {[%emt 0:00:30]} 17. b4 {[%emt 0:04:29]} Ne8 {[%emt 0:01:26]} 18. d5 {[%emt 0:17:15]} exd5 {[%emt 0:01:13]} 19. Bg4 {[%emt 0:00:31]} dxc4 {[%emt 0:01:54]} 20. Bxd7+ {[%emt 0:00:59]} Rxd7 {[%emt 0:00:08]} 21. Rxd7 {[%emt 0:01:01]} Kxd7 {[%emt 0:00:06]} 22. Rd1+ {[%emt 0:00:41]} Kc7 {[%emt 0:00:22]} 23. Kd4 {[%emt 0:00:52]} Nd6 {[%emt 0:01:40]} 24. Ke5 {[%emt 0:01:20]} c3 {[%emt 0:02:31]} 25. Rc1 {[%emt 0:01:16]} Nc4+ {[%emt 0:00:43]} 26. Kf5 {[%emt 0:02:51]} Nxa3 {[%emt 0:01:08]} 27. Rxc3 {[%emt 0:00:19]} Nb5 {[%emt 0:00:31]} 28. Rg3 {[%emt 0:01:38]} Nd4+ {[%emt 0:01:18]} 29. Ke4 {[%emt 0:00:29]} Ne6 {[%emt 0:00:19]} 30. f4 {[%emt 0:00:54]} h6 {[%emt 0:04:14]} 31. h4 {[%emt 0:00:44]} g6 {[%emt 0:02:24]} 32. f5 {[%emt 0:02:00]} Nf8 {[%emt 0:00:53]} 33. h5 {[%emt 0:02:56]} g5 {[%emt 0:00:37]} 34. f6 {[%emt 0:01:46]} Nd7 {[%emt 0:01:21]} 35. Kf5 {[%emt 0:00:49]} b5 {[%emt 0:01:31]} 36. Re3 {[%emt 0:01:35]} c5 {[%emt 0:04:28]} 37. Re7 {[%emt 0:00:40]} cxb4 {[%emt 0:11:07]} 38. Rxf7 {[%emt 0:01:01]} b3 {[%emt 0:00:31]} 39. Ke6 {[%emt 0:02:17]} a5 {[%emt 0:01:36]} 40. Rxd7+ {[%emt 0:00:14]} Kc6 {[%emt 0:00:25]} 41. f7 {[%emt 0:30:11]} b2 {[%emt 0:30:09]} 42. Rd1 {[%emt 0:00:04]} a4 {[%emt 0:00:08]} 43. f8=Q {[%emt 0:00:11]} a3 {[%emt 0:00:16]} 44. Qxa3 {[%emt 0:00:07]} g4 {[%emt 0:00:23]} 45. Qxb2 {[%emt 0:00:24]} g3 {[%emt 0:00:18]} 46. Rd6+ {[%emt 0:00:05]} Kc7 {[%emt 0:00:42]} 47. Qxb5 {[%emt 0:00:34]} Kc8 {[%emt 0:00:06]} 48. Qc6+ {[%emt 0:00:40]} Kb8 {[%emt 0:00:13]} 49. Rd8+ {[%emt 0:00:15]} Ka7 {[%emt 0:00:02]} 50. Ra8# {[%emt 0:00:03]} 1-0